bitfinex/quotes_BTCUSD_20220202
["timestamp","ask_amount","ask_price","bid_price","bid_amount"]
[1643809445834,0.00014955,38522.0,38521.0,1.058176]
[1643809446834,0.00014955,38522.0,38521.0,0.358176]
[1643809449085,0.02727201,38531.0,38521.0,0.358176]
[1643809449286,0.02727201,38531.0,38525.0,0.2850689]
[1643809449486,0.02467201,38531.0,38527.0,0.20056446]
[1643809453933,0.02481127,38531.0,38527.0,0.20056446]
[1643809454534,0.02422267,38531.0,38527.0,0.20056446]
[1643809455335,0.02422267,38531.0,38529.0,0.27086993]
[1643809455588,0.00014955,38531.0,38529.0,0.27086993]
[1643809455789,0.00014955,38531.0,38530.0,1.30493219]
[1643809456182,0.00014955,38531.0,38530.0,1.36312318]
[1643809456983,0.00014955,38531.0,38530.0,1.46596245]
[1643809457186,0.00014955,38531.0,38530.0,0.86596245]
[1643809457383,0.00014955,38531.0,38530.0,0.70911527]
[1643809458588,0.00014955,38531.0,38530.0,0.87379789]
[1643809458784,0.00014955,38531.0,38530.0,0.97379789]
[1643809459227,0.00014955,38531.0,38530.0,0.80911527]
[1643809459429,0.31092119,38544.0,38530.0,0.70911527]
[1643809459630,0.00014213,38544.0,38532.0,0.1]
[1643809459831,0.01886785,38543.0,38531.0,9.099e-05]
[1643809460035,1.80330205,38535.0,38531.0,9.099e-05]
[1643809460529,1.79708205,38535.0,38527.0,0.20065545]
[1643809460930,1.79708205,38535.0,38531.0,0.29712674]
[1643809461235,0.28361874,38538.0,38531.0,0.29712674]
[1643809461830,0.08482331,38540.0,38531.0,0.29712674]
[1643809462231,0.3581662,38537.0,38531.0,0.29712674]
[1643809462631,0.3581662,38537.0,38531.0,0.29721773]
[1643809463987,0.00014198,38534.0,38531.0,0.29721773]
[1643809467440,0.00014198,38534.0,38532.0,0.0581]
[1643809467641,0.00014198,38534.0,38532.0,0.05819099]
[1643809469043,0.33913071,38539.0,38532.0,0.05819099]
[1643809470489,0.33913071,38539.0,38532.0,9.099e-05]
[1643809470490,0.53150837,38538.0,38532.0,9.099e-05]
[1643809470686,0.348176,38537.0,38531.0,0.29712674]
[1643809470882,0.38913071,38539.0,38531.0,0.29712674]
[1643809471081,0.56731406,38539.0,38531.0,0.29712674]
[1643809472682,0.51731406,38539.0,38531.0,0.29721773]
[1643809472883,0.33913071,38539.0,38531.0,0.29721773]
[1643809473482,0.33930271,38539.0,38531.0,0.29721773]
[1643809474540,0.348176,38538.0,38531.0,0.29721773]
[1643809474742,0.33930271,38539.0,38531.0,0.29712674]
[1643809476443,0.33930271,38539.0,38531.0,0.29721773]
[1643809476642,0.52689654,38538.0,38531.0,0.29721773]
[1643809476843,0.17872054,38538.0,38531.0,9.099e-05]
[1643809477042,0.17872054,38538.0,38528.0,9.099e-05]
[1643809477246,0.21814888,38533.0,38528.0,9.099e-05]
[1643809477445,0.19151544,38532.0,38526.0,0.1231]
[1643809477645,0.19151544,38532.0,38524.0,9.099e-05]
[1643809477845,0.25555286,38529.0,38524.0,9.099e-05]
[1643809478088,0.30340888,38533.0,38524.0,9.099e-05]
[1643809478288,0.348176,38532.0,38523.0,0.00069204]
[1643809478489,0.33773316,38530.0,38523.0,0.00069204]
[1643809478688,0.348176,38529.0,38523.0,0.00069204]
[1643809478887,0.348176,38529.0,38523.0,9.099e-05]
[1643809479088,0.348176,38529.0,38523.0,0.00078298]
[1643809479390,0.24375407,38527.0,38523.0,0.00078298]
[1643809479590,0.348176,38526.0,38523.0,0.00078298]
[1643809479790,0.19289157,38525.0,38523.0,0.00069199]
[1643809479993,0.19289157,38525.0,38522.0,9.099e-05]
[1643809479994,0.698176,38524.0,38522.0,9.099e-05]
[1643809480191,0.53011742,38523.0,38522.0,9.099e-05]
[1643809480389,0.53011742,38523.0,38521.0,0.01]
[1643809480588,0.1,38525.0,38521.0,0.01]
[1643809480589,0.53081715,38522.0,38521.0,0.01]
[1643809480790,0.62971262,38522.0,38521.0,0.01]
[1643809481592,0.62971262,38522.0,38521.0,0.01009099]
[1643809481834,0.348176,38522.0,38521.0,0.01009099]
[1643809482039,0.1904514,38524.0,38521.0,0.01009099]
[1643809482439,0.24307483,38526.0,38521.0,0.01009099]
[1643809482636,0.348176,38525.0,38521.0,0.01069198]
[1643809482837,0.34808004,38525.0,38521.0,0.01069198]
[1643809483036,0.34808004,38525.0,38521.0,0.27358651]
[1643809483636,0.23818936,38526.0,38521.0,0.01]
[1643809483835,0.23818936,38526.0,38521.0,0.01069198]
[1643809484238,0.25014663,38522.0,38521.0,0.01069198]
[1643809484438,0.00014663,38522.0,38521.0,0.01069198]
[1643809484838,0.00014663,38522.0,38521.0,0.01]
[1643809485492,0.00014663,38522.0,38521.0,0.01009099]
[1643809486188,0.34845363,38522.0,38521.0,0.01009099]
[1643809487192,0.34845363,38522.0,38521.0,0.03542511]
[1643809487389,0.34845363,38522.0,38521.0,0.03533412]
[1643809487991,0.34845363,38522.0,38521.0,0.03542511]
[1643809488591,0.00014663,38522.0,38521.0,0.03533412]
[1643809489090,0.19140413,38524.0,38521.0,0.03533412]
[1643809489341,0.00014663,38524.0,38521.0,0.03542511]
[1643809489542,0.348307,38523.0,38521.0,0.03542511]
[1643809489744,0.348307,38523.0,38521.0,0.03611709]
[1643809489943,0.348307,38523.0,38521.0,0.0360261]
[1643809490846,0.02727172,38524.0,38521.0,0.03533412]
[1643809491243,0.02727172,38524.0,38521.0,0.03542511]
[1643809492142,0.02727172,38524.0,38521.0,0.03533412]
[1643809492345,0.02727172,38524.0,38521.0,0.0360261]
[1643809493186,0.02727172,38524.0,38521.0,0.03533412]
[1643809493486,0.02727172,38524.0,38521.0,0.0360261]
[1643809494486,0.02727172,38524.0,38521.0,0.31126678]
[1643809494688,0.02727172,38524.0,38521.0,0.31195876]
[1643809495687,0.02727172,38524.0,38521.0,0.03533412]
[1643809495891,0.02727172,38524.0,38521.0,0.0360261]
[1643809496748,0.02727172,38524.0,38521.0,0.03533412]
[1643809496948,0.02727172,38524.0,38521.0,0.0360261]
[1643809498049,0.02727172,38524.0,38521.0,0.03542511]
[1643809498251,0.02727172,38524.0,38521.0,0.03611709]
[1643809499252,0.02727172,38524.0,38521.0,0.03542511]
[1643809499451,0.348307,38523.0,38521.0,0.0360261]
[1643809500053,0.02727172,38524.0,38521.0,0.0360261]
[1643809500251,0.348307,38523.0,38521.0,0.0360261]
[1643809500495,0.52618338,38523.0,38521.0,0.03533412]
[1643809500690,0.348307,38522.0,38521.0,0.0360261]
[1643809500890,0.51816627,38522.0,38521.0,0.0360261]
[1643809501099,1.05386745,38522.0,38521.0,0.0360261]
[1643809501497,1.44504362,38522.0,38521.0,0.0360261]
[1643809501792,1.44504362,38522.0,38521.0,0.03533412]
[1643809501793,1.10764944,38522.0,38521.0,0.03533412]
[1643809502191,0.93139527,38522.0,38521.0,0.03533412]
[1643809502392,1.16574944,38522.0,38521.0,0.03533412]
[1643809503293,0.064941,38519.0,38514.0,0.00276735]
[1643809503492,1.0725534,38517.0,38507.0,0.00086735]
[1643809503693,0.58364273,38516.0,38507.0,0.00086735]
[1643809503891,0.348307,38515.0,38509.0,0.01839704]
[1643809504092,0.26938367,38512.0,38509.0,0.01839704]
[1643809504340,0.26893831,38512.0,38509.0,0.01839704]
[1643809504539,0.32557496,38511.0,38507.0,0.00086735]
[1643809506943,0.33387831,38512.0,38507.0,0.00086735]
[1643809506944,0.26893831,38512.0,38507.0,0.00086735]
[1643809507746,0.26893831,38512.0,38508.0,0.0006918]
[1643809508188,0.62150438,38512.0,38508.0,0.0006918]
[1643809508789,0.3845579,38513.0,38507.0,0.00086735]
[1643809508790,0.02713356,38513.0,38507.0,0.00086735]
[1643809508990,0.02713356,38513.0,38508.0,0.0006918]
[1643809509392,0.00014848,38510.0,38508.0,0.0006918]
[1643809509990,0.00014848,38510.0,38507.0,0.00086735]
[1643809509991,0.00014848,38510.0,38509.0,0.948307]
[1643809510191,0.00014848,38510.0,38509.0,0.998307]
[1643809510395,0.00014848,38510.0,38509.0,0.398307]
[1643809510591,0.00014848,38510.0,38509.0,0.05]
[1643809510791,0.00014848,38510.0,38507.0,0.05155915]
[1643809510992,0.00014848,38510.0,38508.0,0.348307]
[1643809511397,0.00014848,38510.0,38504.0,0.37699756]
[1643809511398,0.75,38507.0,38497.0,0.0011]
[1643809511595,0.59276526,38506.0,38497.0,0.0011]
[1643809511842,0.59276526,38506.0,38487.0,0.5022]
[1643809511843,1.198362,38505.0,38487.0,0.5022]
[1643809512041,1.198362,38505.0,38487.0,0.0022]
[1643809512042,0.7269,38495.0,38487.0,0.0022]
[1643809512344,0.24715194,38493.0,38487.0,0.0022]
[1643809512642,0.7269,38490.0,38488.0,0.0010259]
[1643809512840,0.406462,38489.0,38488.0,0.0010259]
[1643809513045,0.406462,38489.0,38481.0,0.0141]
[1643809513046,1.236272,38489.0,38481.0,0.0141]
[1643809513244,0.7269,38486.0,38481.0,0.0141]
[1643809513452,1.133362,38485.0,38481.0,0.0141]
[1643809513644,1.233362,38485.0,38481.0,0.0141]
[1643809513842,1.233362,38485.0,38482.0,0.0023253]
[1643809514341,1.233362,38485.0,38484.0,0.14696812]
[1643809514543,1.40979819,38485.0,38484.0,0.29291016]
[1643809514947,1.233362,38485.0,38484.0,0.29291016]
[1643809516091,1.4097897,38485.0,38484.0,0.29291016]
[1643809517088,1.233362,38485.0,38484.0,0.29291016]
[1643809517693,1.40979524,38485.0,38484.0,0.29291016]
[1643809517889,1.233362,38485.0,38484.0,0.29291016]
[1643809518292,1.29835568,38485.0,38484.0,0.14309016]
[1643809518589,1.29835568,38485.0,38484.0,0.14318107]
[1643809518590,0.75478409,38485.0,38484.0,0.14318107]
[1643809518790,0.77326023,38485.0,38484.0,0.14318107]
[1643809518992,0.94969293,38485.0,38484.0,0.14318107]
[1643809519239,1.65234695,38485.0,38484.0,0.14318107]
[1643809519440,0.75,38484.0,38481.0,0.01290267]
[1643809519741,1.215859,38483.0,38481.0,0.01290267]
[1643809519942,0.348362,38482.0,38481.0,0.01290267]
[1643809520140,0.400362,38482.0,38481.0,0.01290267]
[1643809520342,0.500362,38482.0,38481.0,0.01290267]
[1643809520541,0.500362,38482.0,38481.0,0.01299358]
[1643809522041,0.29482082,38479.0,38478.0,0.29398855]
[1643809522242,0.052,38479.0,38478.0,0.28898855]
[1643809522443,0.01817091,38479.0,38478.0,0.28898855]
[1643809522641,0.01800261,38479.0,38478.0,0.28898855]
[1643809523187,0.65237268,38479.0,38478.0,0.28898855]
[1643809524486,0.01800261,38479.0,38478.0,0.28898855]
[1643809524687,0.36637461,38479.0,38478.0,0.28898855]
[1643809525488,0.39353237,38479.0,38478.0,0.28898855]
[1643809528243,0.39353237,38479.0,38478.0,0.12725678]
[1643809529141,0.3936867,38479.0,38478.0,0.12725678]
[1643809530144,0.3936867,38479.0,38472.0,0.001]
[1643809530348,0.0453147,38479.0,38472.0,0.001]
[1643809531193,0.0453147,38479.0,38472.0,0.23891294]
[1643809531390,0.28239716,38479.0,38472.0,0.23891294]
[1643809531788,0.38239716,38479.0,38472.0,0.23891294]
[1643809532191,0.75,38478.0,38471.0,0.086192]
[1643809532391,0.0453147,38479.0,38471.0,0.086192]
[1643809532592,0.17643565,38478.0,38471.0,0.086192]
[1643809532791,0.0453147,38479.0,38471.0,0.086192]
[1643809533190,0.0453147,38479.0,38472.0,0.22258542]
[1643809533391,0.30838551,38479.0,38472.0,0.22258542]
[1643809533991,0.30838551,38479.0,38472.0,0.21258542]
[1643809534236,0.30838551,38479.0,38474.0,0.00068252]
[1643809535338,0.30838551,38479.0,38471.0,0.086192]
[1643809535538,0.0453147,38479.0,38475.0,0.00060572]
[1643809536538,0.0453147,38479.0,38474.0,0.05]
[1643809536738,0.0453147,38479.0,38475.0,0.00053888]
[1643809536937,0.0314665,38479.0,38475.0,0.00053888]
[1643809537139,0.5,38478.0,38474.0,0.04955888]
[1643809537539,0.0314665,38479.0,38474.0,0.04955888]
[1643809538793,0.348372,38478.0,38474.0,0.04955888]
[1643809538996,0.00069083,38478.0,38474.0,0.03955888]
[1643809539194,0.00085956,38478.0,38474.0,0.03955888]
[1643809539795,0.02869645,38479.0,38474.0,0.039649]
[1643809539994,0.61555782,38478.0,38474.0,0.039649]
[1643809540194,0.348372,38477.0,38474.0,0.039649]
[1643809540395,0.052,38477.0,38474.0,0.03955888]
[1643809542545,0.052,38477.0,38474.0,0.08955888]
[1643809543447,0.052,38477.0,38475.0,0.26665994]
[1643809543648,0.052,38477.0,38475.0,0.26675006]
[1643809543845,0.02715776,38479.0,38475.0,0.26675006]
[1643809544246,0.00016039,38476.0,38475.0,0.26675006]
[1643809545145,0.00016039,38476.0,38475.0,0.28755606]
[1643809545605,0.00016039,38476.0,38475.0,0.5377919]
[1643809545805,0.00016039,38476.0,38475.0,0.5877919]
[1643809546002,0.00016039,38476.0,38475.0,0.43955606]
[1643809546199,0.02715364,38485.0,38476.0,0.75]
[1643809546400,0.02715364,38485.0,38478.0,0.09860847]
[1643809546401,0.00065659,38480.0,38478.0,0.09860847]
[1643809546601,0.00065659,38480.0,38479.0,0.770798]
[1643809546801,0.00065659,38480.0,38479.0,0.820798]
[1643809547005,0.00065659,38480.0,38479.0,0.82088812]
[1643809547201,0.41834516,38486.0,38479.0,0.63511865]
[1643809547403,0.41834516,38486.0,38480.0,0.085767]
[1643809547605,0.41834516,38486.0,38481.0,0.020791]
[1643809547802,0.41834516,38486.0,38481.0,0.070791]
[1643809548003,0.41834516,38486.0,38482.0,0.02079]
[1643809548403,0.41834516,38486.0,38485.0,0.24107347]
[1643809548605,0.41834516,38486.0,38485.0,0.36989198]
[1643809548803,0.41834516,38486.0,38485.0,0.17881851]
[1643809548804,0.41900176,38486.0,38485.0,0.17881851]
[1643809549643,0.41834516,38486.0,38485.0,0.17881851]
[1643809549842,0.41834516,38486.0,38485.0,0.05]
[1643809550041,0.41834516,38486.0,38484.0,9.012e-05]
[1643809550342,0.41834516,38486.0,38481.0,9.012e-05]
[1643809550744,0.41834516,38486.0,38478.0,9.012e-05]
[1643809550941,0.30075187,38483.0,38479.0,0.28105517]
[1643809551741,0.0006616,38485.0,38479.0,0.28105517]
[1643809551942,0.0006616,38485.0,38479.0,0.28114529]
[1643809552140,0.41834516,38486.0,38480.0,0.16927412]
[1643809552345,0.00066161,38484.0,38480.0,0.16927412]
[1643809552540,0.00066161,38484.0,38480.0,0.16936424]
[1643809552999,0.00066161,38484.0,38480.0,9.012e-05]
[1643809553196,0.064984,38485.0,38476.0,9.012e-05]
[1643809553595,0.0006611,38484.0,38476.0,9.012e-05]
[1643809553794,0.0006611,38484.0,38478.0,0.2651823]
[1643809554196,0.00014918,38482.0,38478.0,0.2651823]
[1643809554393,0.00014918,38482.0,38478.0,0.26527242]
[1643809554593,0.00014918,38482.0,38478.0,9.012e-05]
[1643809554795,0.00081029,38482.0,38478.0,9.012e-05]
[1643809554995,0.00081029,38482.0,38475.0,0.00058344]
[1643809554996,0.00081029,38482.0,38475.0,0.00067356]
[1643809555394,0.00081029,38482.0,38476.0,0.27121193]
[1643809555594,0.00014918,38482.0,38478.0,0.20326571]
[1643809555895,0.00066111,38481.0,38478.0,0.20326571]
[1643809556497,0.00066111,38481.0,38479.0,0.08]
[1643809556742,0.00066111,38481.0,38479.0,0.08009012]
[1643809556943,0.41834516,38486.0,38481.0,0.08]
[1643809557143,0.00066096,38482.0,38481.0,0.08]
[1643809557744,0.39900612,38486.0,38481.0,0.08]
[1643809559550,0.00048561,38485.0,38481.0,0.08]
[1643809559950,0.29102945,38485.0,38481.0,0.08]
[1643809560159,0.400372,38484.0,38481.0,0.08]
[1643809560353,0.649132,38483.0,38481.0,0.08]
[1643809560597,0.900372,38482.0,38481.0,0.08]
[1643809560793,1.050372,38482.0,38481.0,0.08]
[1643809560991,1.17680765,38482.0,38481.0,0.08]
[1643809561191,0.67680765,38482.0,38481.0,0.08]
[1643809561594,0.67697965,38482.0,38481.0,0.08]
[1643809561792,0.17660765,38482.0,38481.0,0.08]
[1643809561992,0.000172,38482.0,38481.0,0.08]
[1643809562195,0.000172,38482.0,38481.0,0.4815447]
[1643809562596,0.000172,38482.0,38481.0,0.75205446]
[1643809563394,0.000172,38482.0,38481.0,0.57668157]
[1643809563595,0.000172,38482.0,38481.0,0.75113689]
[1643809564244,0.00031372,38482.0,38481.0,0.75113689]
[1643809564844,0.0274661,38482.0,38481.0,0.75113689]
[1643809565046,0.0274661,38482.0,38481.0,0.08]
[1643809566447,0.0274661,38482.0,38481.0,0.08009012]
[1643809566849,0.0274661,38482.0,38481.0,9.012e-05]
[1643809567248,0.0274661,38482.0,38480.0,0.08009012]
[1643809568098,0.0274661,38482.0,38481.0,0.13]
[1643809568293,0.0274661,38482.0,38481.0,0.13009012]
[1643809568894,0.0274661,38482.0,38481.0,0.13]
[1643809570495,0.0274661,38482.0,38481.0,0.30410931]
[1643809570698,0.0274661,38482.0,38481.0,0.13009012]
[1643809571296,0.0274661,38482.0,38481.0,0.13]
[1643809571754,0.0274661,38482.0,38481.0,0.39360475]
[1643809571954,0.0274661,38482.0,38481.0,0.41448787]
[1643809572655,0.0274661,38482.0,38481.0,0.41439775]
[1643809574158,0.39900612,38486.0,38483.0,0.08]
[1643809574360,0.39900612,38486.0,38485.0,0.83]
[1643809574558,0.39900612,38486.0,38485.0,1.18311699]
[1643809575157,0.39900612,38486.0,38485.0,1.71795601]
[1643809577096,0.39900612,38486.0,38485.0,1.76995601]
[1643809578196,0.39900612,38486.0,38485.0,0.41674262]
[1643809578994,0.39900612,38486.0,38485.0,0.59136921]
[1643809579247,0.39915551,38486.0,38485.0,0.84511794]
[1643809580043,0.39915551,38486.0,38485.0,0.67049135]
[1643809580446,0.39915551,38486.0,38485.0,0.84633683]
[1643809580644,0.39915551,38486.0,38485.0,0.84705377]
[1643809583289,0.39915551,38486.0,38485.0,0.35453273]
[1643809583488,0.39915551,38486.0,38485.0,0.57872548]
[1643809583690,0.39915551,38486.0,38485.0,0.58286685]
[1643809584089,0.39915551,38486.0,38485.0,0.57879873]
[1643809584289,0.39915551,38486.0,38485.0,0.46273273]
[1643809584589,0.39915551,38486.0,38485.0,0.63769302]
[1643809587847,0.39915551,38486.0,38485.0,0.150784]
[1643809588047,0.39915551,38486.0,38485.0,0.13]
[1643809588849,0.74752751,38486.0,38485.0,0.13]
[1643809589648,0.79752751,38486.0,38485.0,0.13]
[1643809590349,0.74752751,38486.0,38485.0,0.13]
[1643809590593,0.87748974,38486.0,38485.0,0.13]
[1643809590992,0.52911774,38486.0,38485.0,0.13]
[1643809593900,0.39915551,38486.0,38485.0,0.13]
[1643809598106,0.79752751,38486.0,38485.0,0.13]
[1643809598303,0.85572751,38486.0,38485.0,0.13]
[1643809598902,1.03216316,38486.0,38485.0,0.13]
[1643809599105,0.85572751,38486.0,38485.0,0.13]
[1643809599301,0.68379116,38486.0,38485.0,0.13]
[1643809599501,0.50735551,38486.0,38485.0,0.13]
[1643809600501,0.85572751,38486.0,38485.0,0.13]
[1643809601301,0.50735551,38486.0,38485.0,0.13]
[1643809601504,0.50735551,38486.0,38485.0,0.20367548]
[1643809601751,0.85572751,38486.0,38485.0,0.13]
[1643809602148,1.03216316,38486.0,38485.0,0.13]
[1643809602349,0.85572751,38486.0,38485.0,0.13]
[1643809606900,0.95572751,38486.0,38485.0,0.13]
[1643809607103,1.68352751,38486.0,38485.0,0.13]
[1643809607498,1.85996316,38486.0,38485.0,0.13]
[1643809608499,1.98993816,38486.0,38485.0,0.13]
[1643809609247,1.98993816,38486.0,38485.0,0.18]
[1643809609647,1.87494916,38486.0,38485.0,0.18]
[1643809610348,1.90210437,38486.0,38485.0,0.18]
[1643809610749,2.00210437,38486.0,38485.0,0.18]
[1643809611249,1.95210437,38486.0,38485.0,0.18]
[1643809613401,2.05210437,38486.0,38485.0,0.18]
[1643809613801,2.05210437,38486.0,38481.0,0.05]
[1643809613802,0.87765242,38482.0,38481.0,0.05]
[1643809614002,1.52565507,38482.0,38481.0,0.05]
[1643809614203,0.75,38480.0,38473.0,9.012e-05]
[1643809614406,0.75,38480.0,38472.0,0.001]
[1643809614407,0.59439066,38479.0,38472.0,0.001]
[1643809614608,0.38179961,38469.0,38461.0,0.011]
[1643809614804,0.79410769,38468.0,38461.0,0.011]
[1643809615004,1.141202,38467.0,38461.0,0.011]
[1643809615205,0.78530574,38466.0,38461.0,0.011]
[1643809615506,0.348372,38465.0,38461.0,0.011]
[1643809615706,0.486572,38465.0,38461.0,0.011]
[1643809616102,0.61662326,38465.0,38461.0,0.011]
[1643809616304,0.66662326,38465.0,38461.0,0.011]
[1643809616752,0.51662326,38465.0,38464.0,0.0017328]
[1643809619348,0.56678557,38465.0,38464.0,0.0017328]
[1643809619952,0.66678557,38465.0,38464.0,0.0017328]
[1643809620355,0.97526537,38465.0,38464.0,0.0017328]
[1643809620915,0.79683757,38465.0,38464.0,0.0017328]
[1643809621118,0.73180757,38465.0,38464.0,0.0017328]
[1643809621316,0.95912089,38465.0,38464.0,0.0017328]
[1643809621518,0.78180757,38465.0,38464.0,0.0017328]
[1643809621717,0.90824322,38465.0,38464.0,0.0017328]
[1643809622517,0.95824322,38465.0,38464.0,0.0017328]
[1643809622718,0.90824322,38465.0,38464.0,0.0017328]
[1643809622916,0.80824322,38465.0,38464.0,0.0017328]
[1643809623717,0.58180757,38465.0,38464.0,0.0017328]
[1643809624860,0.68180757,38465.0,38464.0,0.0017328]
[1643809625053,0.85824322,38465.0,38464.0,0.0017328]
[1643809625258,0.68180757,38465.0,38464.0,0.0017328]
[1643809625657,0.88541229,38465.0,38464.0,0.0017328]
[1643809625855,0.78721351,38465.0,38464.0,0.0017328]
[1643809626057,0.75897664,38465.0,38464.0,0.0017328]
[1643809626458,0.93944975,38465.0,38464.0,0.0017328]
[1643809626658,0.70077664,38465.0,38464.0,0.0017328]
[1643809626860,0.66219029,38465.0,38464.0,0.0017328]
[1643809627061,0.02733138,38465.0,38464.0,0.0017328]
[1643809628503,0.02733138,38465.0,38464.0,0.0599328]
[1643809628699,0.00016231,38465.0,38464.0,0.1007628]
[1643809629099,0.02716265,38470.0,38464.0,0.1007628]
[1643809629301,0.02716265,38470.0,38464.0,0.13994565]
[1643809629499,0.02716265,38470.0,38465.0,0.27832745]
[1643809630106,0.02716265,38470.0,38464.0,0.12994565]
[1643809630501,0.02716265,38470.0,38466.0,0.00067737]
[1643809631507,0.00085819,38472.0,38465.0,0.25939416]
[1643809631508,0.00016772,38472.0,38465.0,0.46520053]
[1643809631749,0.00016772,38472.0,38467.0,0.0582]
[1643809631750,0.0008582,38472.0,38467.0,0.0582]
[1643809631952,0.0008582,38472.0,38468.0,0.20831706]
[1643809632148,0.0008582,38472.0,38469.0,0.0582]
[1643809632349,0.0008582,38472.0,38471.0,0.23485539]
[1643809632553,0.0008582,38472.0,38471.0,0.62425534]
[1643809632750,0.00016772,38472.0,38471.0,0.62425534]
[1643809632949,0.00016772,38472.0,38471.0,0.60925534]
[1643809633149,0.00016772,38472.0,38471.0,0.0582]
[1643809633752,0.06516545,38472.0,38471.0,0.0582]
[1643809634149,0.06499773,38472.0,38471.0,0.0582]
[1643809634548,0.06499773,38472.0,38468.0,0.00067732]
[1643809635151,0.06499773,38472.0,38465.0,8.945e-05]
[1643809635511,0.06568823,38472.0,38468.0,0.00067732]
[1643809635899,0.06568823,38472.0,38469.0,0.26230124]
[1643809636299,0.06499773,38472.0,38465.0,8.945e-05]
[1643809636503,0.06568823,38472.0,38468.0,0.00067732]
[1643809637102,0.35925935,38471.0,38468.0,0.00067732]
[1643809637306,0.48376431,38470.0,38468.0,0.00067732]
[1643809637503,1.19117707,38469.0,38463.0,8.945e-05]
[1643809637705,0.398378,38468.0,38462.0,0.02140741]
[1643809637903,0.54022876,38467.0,38462.0,0.02140741]
[1643809638105,0.19185076,38467.0,38462.0,0.02140741]
[1643809638303,0.13004621,38466.0,38462.0,0.02140741]
[1643809638505,0.26009421,38466.0,38462.0,0.02140741]
[1643809638904,0.19507021,38466.0,38462.0,0.02208484]
[1643809639547,0.06501851,38465.0,38462.0,0.02208484]
[1643809640049,0.06501851,38465.0,38462.0,0.02208485]
[1643809640448,0.20064,38470.0,38462.0,0.02208485]
[1643809640653,0.065004,38468.0,38467.0,0.09941819]
[1643809641050,0.065004,38468.0,38467.0,0.38119611]
[1643809641251,0.13017856,38471.0,38467.0,0.38119611]
[1643809641252,0.00016741,38471.0,38467.0,0.38119611]
[1643809641449,0.00016741,38471.0,38467.0,0.43939611]
[1643809641651,0.06516676,38471.0,38467.0,0.43939611]
[1643809642049,0.06516676,38471.0,38467.0,0.43948225]
[1643809642050,0.00016741,38471.0,38467.0,0.43948225]
[1643809642449,0.00016741,38471.0,38467.0,0.44015959]
[1643809643100,0.00016741,38471.0,38467.0,0.38195959]
[1643809643500,0.00016741,38471.0,38468.0,0.17784416]
[1643809644899,0.00016741,38471.0,38468.0,0.17852149]
[1643809645902,0.00016741,38471.0,38468.0,0.17784416]
[1643809646105,0.00016741,38471.0,38469.0,0.092824]
[1643809646303,0.00016741,38471.0,38470.0,1.07667834]
[1643809646502,0.00016741,38471.0,38470.0,1.12867834]
[1643809646753,0.00016741,38471.0,38470.0,1.22867834]
[1643809646955,0.00016741,38471.0,38470.0,1.34554896]
[1643809647155,0.00016741,38471.0,38470.0,1.41053096]
[1643809647355,0.00016741,38471.0,38470.0,1.007796]
[1643809647757,0.00016741,38471.0,38470.0,0.257796]
[1643809647958,0.00016741,38471.0,38470.0,0.157796]
[1643809648357,0.00016741,38471.0,38470.0,0.3633384]
[1643809649357,0.00016741,38471.0,38470.0,0.6735801]
[1643809649556,0.00016741,38471.0,38470.0,0.3633384]
[1643809650359,0.00016741,38471.0,38470.0,0.6133384]
[1643809651800,0.00016741,38471.0,38470.0,0.94202493]
[1643809652200,0.00016741,38471.0,38470.0,0.6133384]
[1643809653300,0.00016741,38471.0,38470.0,0.3633384]
[1643809653500,0.00016741,38471.0,38470.0,0.2983564]
[1643809654102,0.00016741,38471.0,38470.0,0.092814]
[1643809654349,0.00016741,38471.0,38470.0,0.342814]
[1643809654551,0.00016741,38471.0,38470.0,0.040814]
[1643809654749,0.00016741,38471.0,38469.0,0.040815]
[1643809654950,0.00016741,38471.0,38468.0,0.00067732]
[1643809655353,0.17762005,38471.0,38468.0,0.00067732]
[1643809655552,0.17762005,38471.0,38467.0,8.614e-05]
[1643809655850,0.22762005,38471.0,38468.0,0.00067733]
[1643809656650,0.22762005,38471.0,38467.0,8.614e-05]
[1643809656851,0.17762005,38471.0,38468.0,0.00067733]
[1643809657053,0.0650114,38470.0,38468.0,0.00067733]
[1643809658004,0.1300164,38470.0,38467.0,8.614e-05]
[1643809658199,0.1300164,38470.0,38465.0,0.22154657]
[1643809658399,0.1300153,38469.0,38465.0,0.22154657]
[1643809658801,0.1300153,38469.0,38465.0,0.22145713]
[1643809659400,0.1300153,38469.0,38465.0,0.22154657]
[1643809659802,0.1300153,38469.0,38465.0,0.32150432]
[1643809660503,0.06517886,38470.0,38465.0,0.32150432]
[1643809661101,0.06517886,38470.0,38465.0,0.22154657]
[1643809661304,0.06517886,38470.0,38465.0,0.22145713]
[1643809662851,0.06517886,38470.0,38465.0,0.222134]
[1643809663854,0.06517886,38470.0,38465.0,0.22145713]
[1643809664051,0.06517886,38470.0,38465.0,0.222134]
[1643809665054,0.06517886,38470.0,38465.0,0.22145713]
[1643809665252,0.06517886,38470.0,38465.0,0.222134]
[1643809666196,0.06517886,38470.0,38465.0,0.49744162]
[1643809666401,0.06517886,38470.0,38465.0,0.49676475]
[1643809666599,0.06517886,38470.0,38465.0,0.49744162]
[1643809667000,0.06517886,38470.0,38465.0,0.222134]
[1643809667600,0.06517886,38470.0,38465.0,0.22145713]
[1643809667801,0.06517886,38470.0,38465.0,0.2221323]
[1643809668003,0.19519586,38470.0,38465.0,0.2221323]
[1643809668401,0.06517886,38470.0,38465.0,0.2221323]
[1643809668603,0.00016746,38470.0,38465.0,0.2221323]
[1643809668802,0.00016746,38470.0,38465.0,0.22145713]
[1643809669003,0.00016746,38470.0,38465.0,0.2221323]
[1643809669251,0.00016746,38470.0,38466.0,0.04082]
[1643809669453,0.00016746,38470.0,38465.0,0.2221323]
[1643809669652,0.00016746,38470.0,38467.0,0.26420407]
[1643809670152,0.00016746,38470.0,38468.0,0.07748557]
[1643809671555,0.00016746,38470.0,38468.0,0.24037086]
[1643809671754,0.00016746,38470.0,38468.0,0.07748557]
[1643809679353,0.00016746,38470.0,38468.0,0.24268165]
[1643809679550,0.00016746,38470.0,38468.0,0.07748557]
[1643809679749,0.00016746,38470.0,38468.0,0.24069604]
[1643809679950,0.00016746,38470.0,38468.0,0.07748557]
[1643809680601,0.00016746,38470.0,38468.0,0.24010217]
[1643809681103,0.00016746,38470.0,38468.0,0.07748557]
[1643809681799,0.00016746,38470.0,38468.0,0.23983003]
[1643809682003,0.00016746,38470.0,38468.0,0.24545963]
[1643809682201,0.00016746,38470.0,38469.0,0.16284377]
[1643809682401,9.119e-05,38470.0,38468.0,0.07748557]
[1643809683903,9.119e-05,38470.0,38467.0,0.26420407]
[1643809684352,0.00016752,38470.0,38467.0,0.26420407]
[1643809684752,0.00016752,38470.0,38467.0,0.31420407]
[1643809684956,0.00016752,38470.0,38468.0,0.25091868]